fUST/lending_fUST_20250802
["ID","MTS","AMOUNT","RATE_DAILY","PERIOD"]
[376764855,1754103046217,-403.3600427,0.00019778,2]
[376764856,1754103046226,-461.85173162,0.00019778,2]
[376764857,1754103046235,-460.0,0.00019778,2]
[376764858,1754103046245,-26854.32788972,0.0002005,2]
[376764859,1754103046302,-7679.40000001,0.0002005,2]
[376764860,1754103087855,173.7059697,0.00019178,2]
[376764862,1754103305595,10000.0,0.0001919,2]
[376764863,1754103373026,278.39,0.000192,2]
[376764866,1754104105234,715.0,0.00026027,120]
[376764884,1754104232461,-237.34780674,0.00019402,2]
[376764886,1754104232472,-460.0,0.00019502,2]
[376764888,1754104232481,-460.0,0.00019502,2]
[376764890,1754104232490,-300.0,0.00019502,2]
[376764892,1754104232499,-1436.43,0.00019503,2]
[376764894,1754104232508,-460.0,0.00019503,2]
[376764896,1754104232517,-460.0,0.00019503,2]
[376764898,1754104232527,-514.37,0.00019503,2]
[376764900,1754104232537,-460.0,0.00019503,2]
[376764902,1754104232547,-466.23,0.00019775,2]
[376764904,1754104232557,-460.0,0.00019775,2]
[376764906,1754104232566,-460.0,0.00019775,2]
[376764908,1754104232575,-460.0,0.00019775,2]
[376764910,1754104232584,-460.0,0.00019775,2]
[376764912,1754104232592,-460.0,0.00019775,2]
[376764914,1754104232603,-460.0,0.00019775,2]
[376764916,1754104232614,-460.0,0.00019775,2]
[376764918,1754104232623,-208.76435332,0.00019775,2]
[376764920,1754104232632,-179.5,0.00019775,2]
[376764922,1754104232641,-460.0,0.00019775,2]
[376764924,1754104232650,-460.0,0.00019775,2]
[376764926,1754104232659,-7451.31712919,0.00019775,2]
[376764928,1754104232668,-460.0,0.00019776,2]
[376764930,1754104232677,-460.0,0.00019776,2]
[376764932,1754104232686,-1436.43,0.00019777,2]
[376764934,1754104232695,-460.0,0.00019777,2]
[376764936,1754104232704,-460.0,0.00019777,2]
[376764938,1754104232713,-514.37,0.00019777,2]
[376764940,1754104232723,-460.0,0.00019777,2]
[376764942,1754104232734,-200.0,0.00019892,15]
[376764944,1754104232743,-200.0,0.00019892,15]
[376764946,1754104232752,-200.0,0.00019892,15]
[376764948,1754104232761,-200.0,0.00019892,15]
[376764950,1754104232772,-460.0,0.00020048,2]
[376764952,1754104232782,-460.0,0.00020048,2]
[376764954,1754104232791,-460.0,0.00020048,2]
[376764956,1754104232800,-460.0,0.00020048,2]
[376764958,1754104232810,-899.11,0.00020048,2]
[376764960,1754104232819,-466.23,0.00020049,2]
[376764962,1754104232828,-460.0,0.00020049,2]
[376764964,1754104232837,-460.0,0.00020049,2]
[376764966,1754104232847,-460.0,0.00020049,2]
[376764968,1754104232856,-319.6580504,0.00020049,2]
[376764970,1754104232865,-460.0,0.00020049,2]
[376764972,1754104232874,-460.0,0.00020049,2]
[376764974,1754104232883,-151.0,0.0002005,2]
[376764976,1754104232893,-484.0,0.0002005,2]
[376764978,1754104232902,-151.0,0.0002005,2]
[376764980,1754104232911,-460.0,0.0002005,2]
[376764982,1754104232920,-157.46845157,0.0002005,2]
[376764983,1754104232929,-151.9876626,0.0002005,2]
[376764985,1754104232938,-151.88579615,0.0002005,2]
[376764986,1754104233092,-153.30850338,0.0002005,2]
[376764987,1754104233102,-151.41690897,0.0002005,2]
[376764988,1754104233111,-151.96341408,0.0002005,2]
[376764989,1754104233123,-151.61114761,0.0002005,2]
[376764990,1754104233133,-151.60267689,0.0002005,2]
[376764991,1754104233143,-500.0,0.0002005,2]
[376764992,1754104233152,-152.83741592,0.0002005,2]
[376764993,1754104233162,-152.77439987,0.0002005,2]
[376764994,1754104233172,-152.4740791,0.0002005,2]
[376764995,1754104233181,-460.0,0.0002005,2]
[376764996,1754104233190,-151.0,0.0002005,2]
[376764997,1754104233199,-1436.43,0.00020051,2]
[376764998,1754104233208,-460.0,0.00020051,2]
[376764999,1754104233218,-460.0,0.00020051,2]
[376765000,1754104233227,-514.37,0.00020051,2]
[376765002,1754104233237,-257.15850541,0.00020051,2]
[376765004,1754104233246,-2736.72849393,0.00020127,2]
[376765006,1754104233257,-158.65552361,0.00020222,2]
[376765008,1754104233266,-460.0,0.00020322,2]
[376765010,1754104233275,-460.0,0.00020322,2]
[376765012,1754104233285,-460.0,0.00020322,2]
[376765014,1754104233294,-461.48164967,0.00020322,2]
[376765016,1754104233304,-899.11,0.00020322,2]
[376765018,1754104233314,-466.23,0.00020323,2]
[376765020,1754104233326,-460.0,0.00020323,2]
[376765022,1754104233335,-338.93360658,0.00020323,2]
[376765024,1754104233345,-460.0,0.00020323,2]
[376765027,1754104233354,-460.0,0.00020323,2]
[376765028,1754104233363,-460.0,0.00020323,2]
[376765030,1754104233373,-484.0,0.00020324,2]
[376765032,1754104233385,-199.66085317,0.00020324,2]
[376765034,1754104233394,-500.0,0.00020324,2]
[376765036,1754104233403,-151.0,0.00020324,2]
[376765038,1754104233413,-460.0,0.00020324,2]
[376765040,1754104233423,-460.0,0.00020324,2]
[376765042,1754104233432,-1436.43,0.00020325,2]
[376765044,1754104233441,-460.0,0.00020325,2]
[376765046,1754104233451,-460.0,0.00020325,2]
[376765048,1754104233460,-514.37,0.00020325,2]
[376765050,1754104233469,-151.0,0.00020356,2]
[376765052,1754104233478,-151.0,0.00020356,2]
[376765053,1754104233489,-158.130363,0.00020356,2]
[376765055,1754104233498,-151.0,0.00020356,2]
[376765056,1754104233507,-151.0,0.00020356,2]
[376765057,1754104233518,-151.0,0.00020356,2]
[376765058,1754104233527,-151.0,0.00020356,2]
[376765059,1754104233537,-152.134161,0.00020356,2]
[376765060,1754104233546,-860.129806,0.00020356,2]
[376765061,1754104233555,-460.0,0.00020596,2]
[376765062,1754104233566,-460.0,0.00020596,2]
[376765063,1754104233585,-460.0,0.00020596,2]
[376765064,1754104233594,-899.11,0.00020596,2]
[376765065,1754104233603,-151.0,0.00020597,2]
[376765066,1754104233616,-151.242276,0.00020597,2]
[376765067,1754104233635,-466.23,0.00020597,2]
[376765068,1754104233645,-460.0,0.00020597,2]
[376765069,1754104233655,-151.0,0.00020597,2]
[376765070,1754104233664,-680.362777,0.00020597,2]
[376765071,1754104233674,-680.362777,0.00020597,2]
[376765072,1754104233683,-460.0,0.00020597,2]
[376765073,1754104233692,-151.0,0.00020597,2]
[376765074,1754104233701,-460.0,0.00020597,2]
[376765075,1754104233710,-151.0,0.00020597,2]
[376765076,1754104233719,-460.0,0.00020597,2]
[376765077,1754104233729,-151.0,0.00020597,2]
[376765078,1754104233739,-484.0,0.00020598,2]
[376765079,1754104233749,-500.0,0.00020598,2]
[376765080,1754104233759,-200.60483278,0.00020598,2]
[376765081,1754104233768,-151.0,0.00020598,2]
[376765082,1754104233778,-151.0,0.00020598,2]
[376765083,1754104233788,-151.0,0.00020598,2]
[376765084,1754104233798,-151.0,0.00020598,2]
[376765085,1754104233808,-151.0,0.00020598,2]
[376765086,1754104233818,-151.0,0.00020598,2]
[376765087,1754104233827,-151.0,0.00020598,2]
[376765088,1754104233839,-151.0,0.00020598,2]
[376765089,1754104233849,-199.91401,0.00020598,2]
[376765090,1754104233859,-199.91401,0.00020598,2]
[376765091,1754104233868,-151.0,0.00020598,2]
[376765092,1754104233878,-151.0,0.00020598,2]
[376765093,1754104233887,-154.366182,0.00020598,2]
[376765094,1754104233898,-163.482594,0.00020598,2]
[376765095,1754104233907,-460.0,0.00020598,2]
[376765096,1754104233916,-460.0,0.00020598,2]
[376765097,1754104233926,-1436.43,0.00020599,2]
[376765098,1754104233935,-460.0,0.00020599,2]
[376765099,1754104233945,-460.0,0.00020599,2]
[376765100,1754104233954,-514.37,0.00020599,2]
[376765101,1754104233963,-151.0,0.00020599,2]
[376765102,1754104233973,-151.0,0.00020599,2]
[376765103,1754104233982,-500.0,0.00020866,2]
[376765104,1754104233992,-500.0,0.00020866,2]
[376765105,1754104234001,-500.0,0.00020866,2]
[376765106,1754104234010,-500.0,0.00020866,2]
[376765107,1754104234021,-500.0,0.00020866,2]
[376765108,1754104234030,-500.0,0.00020866,2]
[376765109,1754104234039,-500.0,0.00020866,2]
[376765110,1754104234049,-500.0,0.00020866,2]
[376765111,1754104234059,-500.0,0.00020866,2]
[376765112,1754104234068,-500.0,0.00020866,2]
[376765113,1754104234078,-500.0,0.00020866,2]
[376765114,1754104234087,-328.52607675,0.00020866,2]
[376765115,1754104234096,-500.0,0.00020866,2]
[376765116,1754104234105,-500.0,0.00020866,2]
[376765117,1754104234115,-500.0,0.00020866,2]
[376765118,1754104234124,-500.0,0.00020866,2]
[376765119,1754104234133,-500.0,0.00020866,2]
[376765120,1754104234143,-500.0,0.00020866,2]
[376765121,1754104234153,-500.0,0.00020866,2]
[376765122,1754104234162,-500.0,0.00020866,2]
[376765123,1754104234172,-500.0,0.00020866,2]
[376765124,1754104234181,-500.0,0.00020866,2]
[376765125,1754104234191,-500.0,0.00020866,2]
[376765126,1754104234201,-500.0,0.00020866,2]
[376765127,1754104234210,-443.72373204,0.00020866,2]
[376765128,1754104234219,-500.0,0.00020866,2]
[376765129,1754104234229,-500.0,0.00020866,2]
[376765130,1754104234238,-500.0,0.00020866,2]
[376765131,1754104234247,-500.0,0.00020866,2]
[376765132,1754104234256,-417.22382956,0.00020866,2]
[376765133,1754104234265,-500.0,0.00020866,2]
[376765134,1754104234275,-502.493273,0.00020866,2]
[376765135,1754104234284,-500.0,0.00020866,2]
[376765136,1754104234294,-500.0,0.00020866,2]
[376765137,1754104234304,-500.0,0.00020866,2]
[376765138,1754104234313,-500.0,0.00020866,2]
[376765139,1754104234322,-500.0,0.00020866,2]
[376765140,1754104234331,-500.0,0.00020866,2]
[376765141,1754104234341,-500.0,0.00020866,2]
[376765142,1754104234350,-500.0,0.00020866,2]
[376765143,1754104234360,-500.0,0.00020866,2]
[376765144,1754104234369,-500.0,0.00020866,2]
[376765145,1754104234383,-500.0,0.00020866,2]
[376765146,1754104234392,-500.0,0.00020866,2]
[376765147,1754104234401,-500.0,0.00020866,2]
[376765148,1754104234410,-500.0,0.00020866,2]
[376765149,1754104234421,-500.0,0.00020866,2]
[376765150,1754104234430,-500.0,0.00020866,2]
[376765151,1754104234439,-500.0,0.00020866,2]
[376765152,1754104234448,-500.0,0.00020866,2]
[376765153,1754104234459,-500.0,0.00020866,2]
[376765154,1754104234468,-500.0,0.00020866,2]
[376765155,1754104234477,-500.0,0.00020866,2]
[376765156,1754104234486,-500.0,0.00020866,2]
[376765157,1754104234495,-500.0,0.00020866,2]
[376765158,1754104234504,-500.0,0.00020866,2]
[376765159,1754104234513,-500.0,0.00020866,2]
[376765160,1754104234524,-500.0,0.00020866,2]
[376765161,1754104234533,-500.0,0.00020866,2]
[376765162,1754104234543,-500.0,0.00020866,2]
[376765163,1754104234552,-500.0,0.00020866,2]
[376765164,1754104234561,-500.0,0.00020866,2]
[376765165,1754104234570,-500.0,0.00020866,2]
[376765166,1754104234579,-280.09060694,0.00020866,2]
[376765167,1754104234588,-500.0,0.00020866,2]
[376765168,1754104234597,-252.33152038,0.00020866,2]
[376765169,1754104234607,-500.0,0.00020866,2]
[376765170,1754104234617,-500.0,0.00020866,2]
[376765171,1754104234626,-500.0,0.00020866,2]
[376765172,1754104234636,-153.25283199,0.00020867,2]
[376765173,1754104234645,-152.973263,0.00020868,2]
[376765174,1754104234654,-151.0,0.00020869,2]
[376765175,1754104234663,-151.0,0.00020869,2]
[376765176,1754104234672,-151.0,0.00020869,2]
[376765177,1754104234681,-154.131752,0.00020869,2]
[376765178,1754104234691,-680.362777,0.00020869,2]
[376765179,1754104234700,-680.362777,0.00020869,2]
[376765180,1754104234709,-680.362777,0.00020869,2]
[376765181,1754104234718,-680.362777,0.00020869,2]
[376765182,1754104234728,-680.362777,0.00020869,2]
[376765183,1754104234738,-680.362777,0.00020869,2]
[376765184,1754104234748,-680.362777,0.00020869,2]
[376765185,1754104234757,-680.362777,0.00020869,2]
[376765186,1754104234768,-151.0,0.00020869,2]
[376765187,1754104234777,-168.577356,0.00020869,2]
[376765188,1754104234787,-151.0,0.00020869,2]
[376765189,1754104234797,-154.068212,0.00020869,2]
[376765190,1754104234806,-151.0,0.00020869,2]
[376765191,1754104234818,-151.0,0.00020869,2]
[376765192,1754104234827,-151.0,0.00020869,2]
[376765193,1754104234838,-151.0,0.00020869,2]
[376765194,1754104234847,-151.0,0.00020869,2]
[376765195,1754104234857,-151.0,0.00020869,2]
[376765196,1754104234866,-151.0,0.00020869,2]
[376765197,1754104234876,-151.0,0.00020869,2]
[376765198,1754104234885,-460.0,0.0002087,2]
[376765199,1754104234894,-460.0,0.0002087,2]
[376765200,1754104234903,-460.0,0.0002087,2]
[376765201,1754104234912,-899.11,0.0002087,2]
[376765202,1754104234921,-151.0,0.00020871,2]
[376765203,1754104234930,-153.12539,0.00020871,2]
[376765204,1754104234939,-151.821795,0.00020871,2]
[376765205,1754104234948,-158.556596,0.00020871,2]
[376765206,1754104234957,-154.51686,0.00020871,2]
[376765207,1754104234966,-158.704848,0.00020871,2]
[376765208,1754104234975,-466.23,0.00020871,2]
[376765209,1754104234984,-460.0,0.00020871,2]
[376765210,1754104234994,-460.0,0.00020871,2]
[376765211,1754104235003,-460.0,0.00020871,2]
[376765212,1754104235014,-460.0,0.00020871,2]
[376765213,1754104235024,-484.0,0.00020872,2]
[376765214,1754104235034,-500.0,0.00020872,2]
[376765215,1754104235048,-219.230085,0.00020872,2]
[376765216,1754104235058,-219.230085,0.00020872,2]
[376765217,1754104235067,-151.0,0.00020872,2]
[376765218,1754104235076,-151.0,0.00020872,2]
[376765219,1754104235085,-151.0,0.00020872,2]
[376765220,1754104235095,-151.0,0.00020872,2]
[376765221,1754104235104,-151.0,0.00020872,2]
[376765222,1754104235116,-151.575284,0.00020872,2]
[376765223,1754104235125,-244.14275211,0.00020872,2]
[376765224,1754104235136,-460.0,0.00020872,2]
[376765225,1754104235146,-503.13336933,0.00020873,2]
[376765226,1754104235156,-503.71834084,0.00020873,2]
[376765227,1754104235165,-240.18489513,0.00020873,2]
[376765228,1754104235174,-500.0,0.00020873,2]
[376765229,1754104235183,-504.68547077,0.00020873,2]
[376765230,1754104235192,-500.8533182,0.00020873,2]
[376765231,1754104235202,-500.0,0.00020873,2]
[376765232,1754104235211,-152.250419,0.00020873,2]
[376765233,1754104235220,-151.0,0.00020873,2]
[376765234,1754104235229,-151.0,0.00020873,2]
[376765235,1754104235238,-151.0,0.00020873,2]
[376765236,1754104235247,-199.91401,0.00020873,2]
[376765237,1754104235255,-199.91401,0.00020873,2]
[376765238,1754104235265,-1436.43,0.00020873,2]
[376765239,1754104235274,-460.0,0.00020873,2]
[376765240,1754104235283,-460.0,0.00020873,2]
[376765241,1754104235293,-680.362777,0.00020873,2]
[376765242,1754104235302,-680.362777,0.00020873,2]
[376765243,1754104235311,-514.37,0.00020873,2]
[376765244,1754104235323,-151.0,0.00020873,2]
[376765245,1754104235333,-151.0,0.00020873,2]
[376765246,1754104235342,-3317.75,0.00020968,10]
[376765247,1754104235353,-335.55841136,0.00020973,2]
[376765248,1754104235362,-503.14448666,0.00020973,2]
[376765249,1754104235372,-504.56301214,0.00020973,2]
[376765250,1754104235385,-152.813536,0.0002098,2]
[376765251,1754104235394,-151.0,0.0002098,2]
[376765252,1754104235403,-151.0,0.0002098,2]
[376765253,1754104235412,-199.91401,0.0002098,2]
[376765254,1754104235421,-199.91401,0.0002098,2]
[376765255,1754104235431,-680.362777,0.0002098,2]
[376765256,1754104235440,-680.362777,0.0002098,2]
[376765257,1754104235449,-151.0,0.0002098,2]
[376765258,1754104235458,-297.820464,0.0002098,2]
[376765259,1754104235468,-664.65,0.0002098,3]
[376765260,1754104235477,-332.32,0.0002098,3]
[376765261,1754104235486,-166.16,0.0002098,3]
[376765262,1754104235495,-498.53,0.0002098,3]
[376765263,1754104235504,-151.0,0.00020989,2]
[376765264,1754104235514,-152.33455,0.00020989,2]
[376765265,1754104235523,-151.0,0.00020989,2]
[376765266,1754104235533,-151.0,0.00020989,2]
[376765267,1754104235542,-151.0,0.00020989,2]
[376765268,1754104235551,-151.0,0.0002099,2]
[376765269,1754104235561,-151.0,0.0002099,2]
[376765270,1754104235570,-151.0,0.0002099,2]
[376765271,1754104235579,-151.0,0.0002099,2]
[376765272,1754104235588,-151.0,0.0002099,2]
[376765273,1754104235597,-199.91401,0.0002099,2]
[376765274,1754104235606,-199.91401,0.0002099,2]
[376765275,1754104235618,-155.134905,0.0002099,2]
[376765276,1754104235631,-12848.02499948,0.00021,2]
[376765277,1754104235642,-219.230085,0.00021,2]
[376765278,1754104235653,-219.230085,0.00021,2]
[376765279,1754104235662,-151.0,0.00021,2]
[376765280,1754104235672,-182.910739,0.00021,2]
[376765281,1754104235681,-151.0,0.00021,2]
[376765282,1754104235691,-151.0,0.00021,2]
[376765283,1754104235701,-151.0,0.00021,2]
[376765284,1754104235710,-199.91401,0.00021,2]
[376765285,1754104235722,-199.91401,0.00021,2]
[376765286,1754104235731,-680.362777,0.00021,2]
[376765287,1754104235741,-680.362777,0.00021,2]
[376765288,1754104235751,-151.0,0.00021,2]
[376765289,1754104235761,-163.87753403,0.00021041,3]
[376765290,1754104235770,-1632.22870395,0.00021046,2]
[376765291,1754104235779,-160.0,0.00021069,2]
[376765292,1754104235788,-160.0,0.00021069,2]
[376765293,1754104235798,-160.0,0.00021069,2]
[376765294,1754104235807,-215.0795835,0.00021069,2]
[376765295,1754104235817,-216.27517063,0.00021069,2]
[376765296,1754104235826,-12646.87439643,0.00021069,2]
[376765297,1754104235835,-841.70373825,0.00021069,2]
[376765298,1754104235846,-231.57249719,0.00021069,2]
[376765299,1754104235855,-460.86285458,0.00021069,2]
[376765300,1754104235864,-160.0,0.00021069,2]
[376765301,1754104235873,-680.362777,0.00021069,2]
[376765302,1754104235882,-680.362777,0.00021069,2]
[376765303,1754104235892,-151.0,0.00021069,2]
[376765304,1754104235901,-219.230085,0.00021076,2]
[376765305,1754104235911,-219.230085,0.00021076,2]
[376765306,1754104235920,-151.0,0.00021076,2]
[376765307,1754104235930,-151.0,0.00021076,2]
[376765308,1754104235939,-151.0,0.00021076,2]
[376765309,1754104235948,-199.91401,0.00021076,2]
[376765310,1754104235959,-199.91401,0.00021076,2]
[376765311,1754104235968,-680.362777,0.0002113,2]
[376765312,1754104235977,-680.36277973,0.0002113,2]
[376765313,1754104235986,-151.0,0.0002113,2]
[376765314,1754104236007,-151.0,0.00021131,2]
[376765315,1754104236017,-151.0,0.00021131,2]
[376765316,1754104236026,-151.0,0.00021131,2]
[376765317,1754104236035,-151.0,0.00021131,2]
[376765318,1754104236044,-151.0,0.00021131,2]
[376765319,1754104236054,-151.0,0.00021131,2]
[376765320,1754104236062,-151.0,0.00021131,2]
[376765321,1754104236072,-151.0,0.00021131,2]
[376765322,1754104236081,-151.0,0.00021131,2]
[376765323,1754104236090,-151.0,0.00021131,2]
[376765324,1754104236099,-151.0,0.00021131,2]
[376765325,1754104236107,-500.0,0.00021131,2]
[376765326,1754104236116,-151.0,0.00021131,2]
[376765327,1754104236125,-500.0,0.00021131,2]
[376765328,1754104236134,-226.36731127,0.00021131,2]
[376765329,1754104236244,-500.0,0.00021131,2]
[376765330,1754104236254,-500.0,0.00021131,2]
[376765331,1754104236263,-500.0,0.00021131,2]
[376765332,1754104236271,-500.0,0.00021131,2]
[376765333,1754104236281,-581.84696591,0.00021131,2]
[376765334,1754104236290,-460.0,0.00021144,2]
[376765335,1754104236299,-460.0,0.00021144,2]
[376765336,1754104236308,-460.0,0.00021144,2]
[376765337,1754104236317,-899.11,0.00021144,2]
[376765338,1754104236326,-466.23,0.00021145,2]
[376765339,1754104236336,-460.0,0.00021145,2]
[376765340,1754104236345,-460.0,0.00021145,2]
[376765341,1754104236354,-460.0,0.00021145,2]
[376765342,1754104236363,-460.0,0.00021145,2]
[376765343,1754104236373,-484.0,0.00021146,2]
[376765344,1754104236387,-500.0,0.00021146,2]
[376765345,1754104236398,-460.0,0.00021146,2]
[376765346,1754104236408,-151.0,0.00021147,2]
[376765347,1754104236419,-1436.43,0.00021147,2]
[376765348,1754104236431,-460.0,0.00021147,2]
[376765349,1754104236440,-460.0,0.00021147,2]
[376765350,1754104236451,-514.37,0.00021147,2]
[376765351,1754104236460,-151.0,0.00021148,2]
[376765352,1754104236469,-219.230085,0.00021148,2]
[376765353,1754104236480,-219.230085,0.00021148,2]
[376765354,1754104236491,-820.82094029,0.00021223,2]
[376765355,1754104236502,-151.407152,0.00021224,2]
[376765356,1754104236513,-152.225599,0.00021224,2]
[376765357,1754104236522,-151.0,0.00021224,2]
[376765358,1754104236532,-151.0,0.00021224,2]
[376765359,1754104236542,-151.0,0.00021224,2]
[376765360,1754104236551,-199.91401,0.00021224,2]
[376765361,1754104236561,-199.91401,0.00021224,2]
[376765362,1754104236570,-420.0,0.00021246,2]
[376765363,1754104236579,-160.0,0.0002125,2]
[376765364,1754104236588,-250.0,0.00021305,2]
[376765365,1754104236598,-153.0,0.00021315,2]
[376765366,1754104236607,-578.4830312,0.00021315,2]
[376765367,1754104236616,-153.0,0.00021315,2]
[376765368,1754104236625,-306.0,0.00021315,2]
[376765369,1754104236634,-153.0,0.00021315,2]
[376765370,1754104236644,-154.9126599,0.00021315,2]
[376765371,1754104236654,-584.0291842,0.00021315,2]
[376765372,1754104236663,-578.4830312,0.00021315,2]
[376765373,1754104236672,-577.7169891,0.00021315,2]
[376765374,1754104236681,-154.8067655,0.00021315,2]
[376765375,1754104236690,-153.0,0.00021315,2]
[376765376,1754104236700,-153.0,0.00021315,2]
[376765377,1754104236710,-460.0,0.00021418,2]
[376765378,1754104236719,-460.0,0.00021418,2]
[376765379,1754104236729,-460.0,0.00021418,2]
[376765380,1754104236738,-899.11,0.00021418,2]
[376765381,1754104236747,-36.73942417,0.00021419,2]
[376765382,1754104236793,-429.49057583,0.00021419,2]
[376765383,1754104236803,-460.0,0.00021419,2]
[376765384,1754104236812,-460.0,0.00021419,2]
[376765385,1754104236822,-460.0,0.00021419,2]
[376765386,1754104236831,-460.0,0.00021419,2]
[376765387,1754104236840,-484.0,0.0002142,2]
[376765388,1754104236850,-500.0,0.0002142,2]
[376765389,1754104236859,-151.0,0.0002142,2]
[376765390,1754104236868,-460.0,0.0002142,2]
[376765391,1754104236878,-500.0,0.00021421,2]
[376765392,1754104236887,-1436.43,0.00021421,2]
[376765393,1754104236897,-460.0,0.00021421,2]
[376765394,1754104236907,-460.0,0.00021421,2]
[376765395,1754104236916,-514.37,0.00021421,2]
[376765396,1754104236926,-219.230085,0.00021422,2]
[376765397,1754104236935,-219.230085,0.00021422,2]
[376765398,1754104236944,-269.0675191,0.00021545,2]
[376765399,1754104236953,-1036.29430992,0.00021576,2]
[376765400,1754104236962,-277.60765454,0.00021579,2]
[376765401,1754104236972,-460.0,0.00021692,2]
[376765402,1754104236981,-460.0,0.00021692,2]
[376765403,1754104236990,-460.0,0.00021692,2]
[376765404,1754104236999,-899.11,0.00021692,2]
[376765405,1754104237009,-466.23,0.00021693,2]
[376765406,1754104237018,-460.0,0.00021693,2]
[376765407,1754104237028,-460.0,0.00021693,2]
[376765408,1754104237037,-460.0,0.00021693,2]
[376765409,1754104237046,-461.39594694,0.00021693,2]
[376765410,1754104237055,-484.0,0.00021694,2]
[376765411,1754104237064,-500.0,0.00021694,2]
[376765412,1754104237073,-151.0,0.00021694,2]
[376765413,1754104237082,-151.0,0.00021694,2]
[376765414,1754104237092,-274.61156,0.00021694,2]
[376765415,1754104237103,-199.91401,0.00021694,2]
[376765416,1754104237112,-199.91401,0.00021694,2]
[376765417,1754104237122,-460.0,0.00021694,2]
[376765418,1754104237133,-151.0,0.00021695,2]
[376765419,1754104237142,-605.97127692,0.00021695,2]
[376765420,1754104237164,-500.0,0.00020866,2]
[376765421,1754104237172,-310.55904643,0.00020866,2]
[376765428,1754104238484,-189.44095357,0.00020866,2]
[376765430,1754104238493,-500.0,0.00020866,2]
[376765433,1754104238503,-2764.79,0.00020968,10]
[376765435,1754104238512,-830.45872308,0.00021695,2]
[376765436,1754104238521,-460.0,0.00021695,2]
[376765437,1754104238530,-460.0,0.00021695,2]
[376765438,1754104238539,-514.37,0.00021695,2]
[376765439,1754104238549,-151.0,0.00021696,2]
[376765440,1754104238558,-600.0,0.00021699,2]
[376765441,1754104238567,-119.0446679,0.00021699,2]
[376765442,1754104238640,-100.1854171,0.00021699,2]
[376765443,1754104238649,-154.48369446,0.00021699,2]
[376765452,1754104240574,-64.74639054,0.00021699,2]
[376765453,1754104240583,-325.75687128,0.00021751,2]
[376765454,1754104240593,-260.0,0.00021798,2]
[376765455,1754104240603,-151.0,0.000218,4]
[376765456,1754104240612,-755.65153204,0.000218,2]
[376765457,1754104240625,-539.99160977,0.000218,2]
[376765458,1754104240636,-2208.02728868,0.000218,2]
[376765463,1754104246484,-1682.52485246,0.000218,2]
[376765464,1754104246500,-151.0,0.00021803,2]
[376765465,1754104246512,-228.548464,0.00021803,2]
[376765466,1754104246522,-199.91401,0.00021803,2]
[376765467,1754104246532,-199.91401,0.00021803,2]
[376765468,1754104246542,-200.0,0.00021841,15]
[376765469,1754104246551,-200.0,0.00021841,15]
[376765470,1754104246563,-200.0,0.00021841,15]
[376765471,1754104246574,-200.0,0.00021841,15]
[376765472,1754104246583,-320.0,0.00021841,15]
[376765473,1754104246593,-500.0,0.00021873,2]